Cogmind - Beta 10.1 @@@ ROGUE MODE // 2020.10.20 @ 13:42:20 Player: Cracklepappy Result: Destroyed by as-81790 with Assembled Heavy Rifle Performance ------------- Evolutions (0) 0 Regions Visited (2) 400 Robots Destroyed (27) 135 Value Destroyed (522) 522 Prototype IDs (4) 80 Alien Tech Used (0) 0 Bonus (0) 0 TOTAL SCORE: 1137 Bonus ------- None Cogmind --------- Core Integrity 0/250 Matter 297/300 Energy 100/100 System Corruption 4% Temperature Cool (0) Movement Treading (220) Ox3 Location -10/Mines Parts ------- > --- POWER (1) -------- (None) > --- PROPULSION (2) --- Light Treads > --- UTILITY (2) ------ High-capacity Storage Unit High-capacity Storage Unit > --- WEAPON (2) ------- Mace Mace > --- INVENTORY (20) --- Light Ion Engine Light Ion Engine Large Storage Unit Large Storage Unit High-capacity Storage Unit High-capacity Battery (400) Sensor Array Improved Signal Interpreter Light Armor Plating Mining Laser Peak State ------------ > --- POWER ------------ Ion Engine > --- PROPULSION ------- Light Treads Light Treads > --- UTILITY ---------- High-capacity Storage Unit High-capacity Storage Unit > --- WEAPON ----------- Small Laser Light Assault Rifle > --- INVENTORY -------- Ion Engine Light Ion Engine Light Ion Engine Light Treads Light Treads Light Treads Large Storage Unit Large Storage Unit High-capacity Storage Unit High-capacity Battery Improved Signal Interpreter Light Armor Plating Small Laser Small Laser Mining Laser Mace Mace [Rating: 9] Favorites ----------- Power Ion Engine Engine Ion Engine Propulsion Light Treads Treads Light Treads Wheel Wheel Utility High-capacity Storage Unit Storage High-capacity Storage Unit Protection Light Armor Plating Weapon Light Assault Rifle Energy Gun Small Laser Ballistic Gun Light Assault Rifle Special Weapon Mining Laser Impact Weapon Mace Build | -11 -10 -10 ------- Run | Scr Mat Min Slots Evolved . | . . . Power . | . . . Propulsion . | . . . Utility . | . . . Weapon . | . . . Parts Attached 30 | 6 14 10 Power 4 | 1 2 1 Engine 4 | 1 2 1 Core . | . . . Reactor . | . . . Propulsion 7 | 2 2 3 Treads 6 | 1 2 3 Leg . | . . . Wheel 1 | 1 . . Hover . | . . . Flight . | . . . Utility 4 | 1 3 . Device . | . . . Storage 3 | 1 2 . Processor . | . . . Hackware . | . . . Protection 1 | . 1 . Artifact . | . . . Weapon 15 | 2 7 6 Energy Gun 5 | 1 1 3 Energy Cannon . | . . . Ballistic Gun 5 | 1 4 . Ballistic Cannon . | . . . Launcher . | . . . Special Weapon 3 | . 2 1 Impact Weapon 2 | . . 2 Slashing Weapon . | . . . Piercing Weapon . | . . . Special Melee Weapon . | . . . Unidentified Prototypes . | . . . Parts Lost 14 | . 4 10 Power 3 | . 1 2 Propulsion 4 | . . 4 Utility 1 | . 1 . Weapon 6 | . 2 4 Highest Loss Streak 9 | . 2 9 Average Slot Usage (%) 93 | . 96 80 Engine 12 | . 13 8 Treads 25 | . 26 20 Storage 19 | . 17 28 Protection 8 | . 9 . Energy Gun 6 | . 6 4 Ballistic Gun 17 | . 20 5 Special Weapon 1 | . . 3 Impact Weapon 1 | . . 8 Naked Turns . | . . . Heaviest Build 71 | 9 71 71 Greatest Support 40 | 10 40 40 Greatest Overweight (x) 21 | . 3 21 Average Overweight (x) . | . . 2 Largest Inventory Capacity 20 | 6 20 20 Average Capacity 13 | 5 12 20 Most Carried 18 | 6 17 18 Average Carried 10 | 3 10 14 Final Capacity 20 | 6 20 20 Final Carried 17 | 6 17 10 Class Distribution -------------------- 62% | Mutant 37% | Hauler-Mutant Dominant Class ---------------- Mutant | -10/Materials Hauler-Mutant | -10/Mines Resources | -11 -10 -10 ----------- Run | Scr Mat Min Matter Collected 608 | 264 271 73 Remotely . | . . . Salvage Created 751 | 83 641 27 Parts 51 | 6 45 . Haulers Intercepted 2 | . 2 . Recyclers Shooed . | . . . Parts Field Recycled . | . . . Retrieved Matter . | . . . Parts Self-Destructed . | . . . Prevented . | . . . Kills | -11 -10 -10 ------- Run | Scr Mat Min Combat Hostiles Destroyed 17 | . 15 2 Melee 2 | . . 2 Guns 14 | . 14 . AOE 1 | . 1 . Classes Destroyed 8 | 2 5 1 Tunneler 1 | 1 . . Hauler 2 | . 2 . Recycler 1 | 1 . . Operator 3 | . 3 . Watcher 3 | . 3 . Swarmer 6 | . 6 . Grunt 9 | . 9 . Assembled 2 | . . 2 Best Kill Streak 4 | 2 4 1 Combat Bots Only 3 | . 3 1 Max Kills in Single Turn 1 | 1 1 1 Gunslinging . | . . . Exploded 1 | . 1 . Melee 1 | . . 1 Uniques/NPCs Destroyed . | . . . Combat | -11 -10 -10 -------- Run | Scr Mat Min Damage Taken 1841 | . 579 1262 Core 250 | . 56 194 Absorbed by Shields . | . . . Core Remaining (%) 100 | 100 . . Volleys Fired 90 | 4 76 10 Largest 2 | 2 2 2 Hottest 100 | 60 100 100 Shots Fired 162 | 8 139 15 Gun 152 | 8 133 11 Cannon . | . . . Launcher . | . . . Special 10 | . 6 4 Kinetic 105 | 4 97 4 Thermal 57 | 4 42 11 Explosive . | . . . Electromagnetic . | . . . Robot Hit Streak 14 | 6 14 3 Robot Miss Streak 5 | . 5 2 Penetration Max . | . . . Secondary Targets 5 | . 5 . Max Gunslinging Chain 1 | . 1 . Shots Hit Robots 109 | 6 91 12 Core Hits 49 | 3 43 3 Critical Hits . | . . . Critical Kills . | . . . Critical Parts Destroyed . | . . . Melee Attacks 15 | . . 15 Impact 15 | . . 15 Slashing . | . . . Piercing . | . . . Sneak Attacks . | . . . Combat Hostiles . | . . . Follow-up Attacks . | . . . Damage Inflicted 1305 | 61 1045 199 Guns 986 | 61 870 55 Cannons . | . . . Explosions 148 | . 148 . Melee 144 | . . 144 Ramming 27 | . 27 . Kinetic 591 | 29 550 12 Thermal 543 | 32 468 43 Explosive . | . . . Electromagnetic . | . . . Impact 144 | . . 144 Slashing . | . . . Piercing . | . . . Highest Corruption 4 | . 4 4 Average Corruption 3 | . 3 4 Corruption Purged . | . . . Effects 24 | . 20 4 Message Errors 6 | . 4 2 Matter Fused 8 | . 6 2 Heat Flow Errors 1 | . 1 . Energy Discharges 1 | . 1 . Parts Rejected 2 | . 2 . Data Loss (minor) 1 | . 1 . Targeting Errors 3 | . 3 . Weapon Failures 2 | . 2 . Overload Shots . | . . . Overflow Damage 76 | . 76 . Projectiles . | . . . Explosions 76 | . 76 . Melee . | . . . Knockbacks 2 | . . 2 Impact 2 | . . 2 Kinetic . | . . . Secondary . | . . . Self-Inflicted Damage 71 | . 71 . Shots 1 | . 1 . Rammed 2 | . 2 . Targets Rammed 2 | . 2 . Kicked . | . . . Crushed . | . . . Highest Temperature 272 | 20 272 60 Average Temperature 40 | 15 44 21 Received Heat Transfer 207 | . 207 . Siege Activations . | . . . Robots Corrupted . | . . . Combat Hostiles . | . . . Parts Fried . | . . . Impact Corruptions . | . . . Robots Melted . | . . . Combat Hostiles . | . . . Parts Melted 1 | . 1 . Heat Transferred 1000 | 75 825 100 Parts Sabotaged . | . . . Parts Stolen . | . . . Parts Stripped . | . . . Power Chain Reactions . | . . . Missiles Intercepted . | . . . Alert | -11 -10 -10 ------- Run | Scr Mat Min Peak Influence 218 | 10 218 58 Initial 43 | . 6 43 Average 66 | 2 78 19 Maximum Alert Level 1 | . 1 . Low Security (%) 88 | 100 85 100 Level 1 11 | . 14 . Level 2 . | . . . Level 3 . | . . . Level 4 . | . . . Level 5 . | . . . High Security . | . . . Max Security . | . . . Squads Dispatched 3 | . 3 . Investigation 1 | . 1 . Extermination . | . . . Reinforcement 2 | . 2 . Assault . | . . . Garrison . | . . . Intercept . | . . . Construction Impeded . | . . . Haulers Reinforced . | . . . Stealth | -11 -10 -10 --------- Run | Scr Mat Min Distress Signals . | . . . Communications Jammed . | . . . Distress Signals . | . . . Times Spotted 43 | . 33 10 Peak Tracking Total 4 | . 4 4 Tactical Retreats 1 | . . 1 Traps | -11 -10 -10 ------- Run | Scr Mat Min Traps Triggered 3 | . 3 . Indirectly . | . . . Trap Hack Attempts . | . . . Triggered . | . . . Disarmed . | . . . Reprogrammed . | . . . Reused . | . . . Traps Extracted . | . . . Installed . | . . . Triggered 1 | . . 1 Machines | -11 -10 -10 ---------- Run | Scr Mat Min Machines Disabled 3 | . 3 . Max in Single Turn 3 | . 3 . Machines Sabotaged . | . . . Garrisons Compromised . | . . . Overloaded Fab Kills . | . . . Fab Network Shutdowns . | . . . Hacking | -11 -10 -10 --------- Run | Scr Mat Min Machines Accessed 6 | . 6 . Terminals 5 | . 5 . Fabricators . | . . . Repair Stations . | . . . Recycling Units 1 | . 1 . Scanalyzers . | . . . Garrison Access . | . . . Total Hacks 19 | . 19 . Successful 13 | . 13 . Failed 6 | . 6 . Catastrophic . | . . . Database Lockouts . | . . . Manual 7 | . 7 . Terminals 18 | . 18 . Fabricators . | . . . Repair Stations . | . . . Recycling Units 1 | . 1 . Scanalyzers . | . . . Garrison Access . | . . . Terminal Hacks 12 | . 12 . Part Schematic 2 | . 2 . Prototype ID Bank 3 | . 3 . Unreport Threat 3 | . 3 . Locate Traps 1 | . 1 . Hauler Manifests 1 | . 1 . Zone Layout 2 | . 2 . Fabricator Hacks . | . . . Repair Station Hacks . | . . . Recycling Unit Hacks . | . . . Scanalyzer . | . . . Garrison Access Hacks . | . . . Unauthorized Hacks 1 | . 1 . Terminals . | . . . Fabricators . | . . . Repair Stations . | . . . Recycling Units 1 | . 1 . Tunnel 1 | . 1 . Scanalyzers . | . . . Garrison Access . | . . . Data Cores Recovered 1 | . 1 . Used . | . . . Hacking Detections 5 | . 5 . Full Trace Events . | . . . Feedback Events . | . . . Feedback Blocked . | . . . Robot Schematics Acquired . | . . . Robots Built . | . . . Matter . | . . . Time . | . . . Total Robot Build Rating . | . . . Part Schematics Acquired 2 | . 2 . Parts Built . | . . . Matter . | . . . Time . | . . . Total Part Build Rating . | . . . Parts Repaired . | . . . Time . | . . . Parts Recycled . | . . . Recycled Matter . | . . . Retrieved Matter . | . . . Retrieved Components . | . . . Parts Scanalyzed . | . . . Part Schematics Acquired . | . . . Parts Damaged . | . . . Bothacking | -11 -10 -10 ------------ Run | Scr Mat Min Used RIF Installer . | . . . Robots Hacked . | . . . Non-combat . | . . . Combat . | . . . Robot Hacks Applied . | . . . Relay Couplers Released . | . . . Robots Rewired . | . . . Allies Hacked . | . . . Hacks Repelled . | . . . Allies | -11 -10 -10 -------- Run | Scr Mat Min Total Allies . | . . . Largest Group . | . . . Highest-Rated Group . | . . . Highest-Rated Ally . | . . . Total Orders . | . . . Ally Attacks . | . . . Total Damage . | . . . Kills . | . . . Allies Corrupted . | . . . Allies Melted . | . . . Intel | -11 -10 -10 ------- Run | Scr Mat Min Robot Analysis Total . | . . . Derelict Logs Recovered . | . . . Drone Launches . | . . . Drone Recoveries . | . . . Exploration | -11 -10 -10 ------------- Run | Scr Mat Min Turns Passed 1604 | 67 1273 264 Spaces Moved 712 | 51 593 68 Core 3 | 2 . 1 Treads 618 | . 551 67 Legs . | . . . Wheels 91 | 49 42 . Hover . | . . . Flight . | . . . Fastest Speed 50 | 50 80 180 Average Speed 166 | 78 168 211 Slowest Speed 1100 | 80 220 1100 Overloaded Moves . | . . . Propulsion Burnouts . | . . . Robots Hopped . | . . . Cave-ins Triggered . | . . . Exploration Rate (%) 39 | 4 96 19 Regions Visited 2 Branch Regions 1 Pre-discovered Areas 1 | . 1 . Known Exits Taken . | . . . Unknown Exits Taken 2 | 1 1 . Scrap Searched 1 | . . 1 Spaces Dug 8 | . 4 4 Terrain Destroyed 40 | . 36 4 Melee . | . . . Projectile 10 | . 6 4 AOE 30 | . 30 . Terrain Rammed . | . . . Walls Destroyed . | . . . Machines Disabled . | . . . Actions | -11 -10 -10 --------- Run | Scr Mat Min Total 940 | 67 730 143 Wait 59 | . 20 39 Move 710 | 50 592 68 Hop . | . . . Pick Up 28 | 7 20 1 Fast Attach 7 | 5 2 . Attach 15 | 1 6 8 Detach . | . . . Swap 8 | . 6 2 Drop 6 | . 6 . Fire 90 | 4 76 10 Melee 15 | . . 15 Ram . | . . . Kick . | . . . Crush 2 | . 2 . Escape Stasis . | . . . Rewire . | . . . Trap . | . . . Miscellaneous . | . . . Route ------- -11/Scrapyard -10/Materials (discovered 4 exits: [*Mat x3] / [*Min]) -10/Mines History --------- Turn | Location | Event 20 | -11/Scrapyard | Discovered new exit (range 15) 68 | -11/Scrapyard | Entered Materials 277 | -10/Materials | Discovered new exit (range 12) 309 | -10/Materials | Build established: Mutant 602 | -10/Materials | Discovered new exit (range 3) 1138 | -10/Materials | Discovered new exit (range 9) 1302 | -10/Materials | Build established: Hauler-Mutant 1307 | -10/Materials | Discovered new exit (range 16) 1341 | -10/Materials | Entered Mines 1342 | -10/Mines | Assembled infested the area 1456 | -10/Mines | Core integrity fell below 50% 1521 | -10/Mines | Lost 9 parts (2p3n4w) 1523 | -10/Mines | Core integrity fell below 20% 1605 | -10/Mines | Destroyed by as-81790 with Assembled Heavy Rifle Last Messages --------------- 01501_ as-14757 destroyed. 01503_ The unstable cave ceiling collapses. 01505_ D-53 Grenadier destroyed. 01506_ The unstable cave ceiling collapses. 01509_ as-54196 destroyed. 01509_ as-63257 destroyed. 01510_ The unstable cave ceiling collapses. 01514_ K-01 Serf collects debris. 01518_ The unstable cave ceiling collapses. 01518_ K-01 Serf collects debris. 01522_ Lgt. Treads destroyed. 01522_ D-53 Grenadier destroyed. 01533_ The unstable cave ceiling collapses. 01549_ System corrupted: Matter fused (-10). 01556_ as-45559 destroyed. 01558_ Acquired 16 matter. 01569_ T-07 Excavator system corrupted by crushing effect. 01570_ WYNAV4R2TUYJ%NUTG XE%INMEO2K8 MZJMSCV 01578_ as-88016 destroyed. 01582_ Acquired 11 matter. Map ----- +----------------------------------------------------+ | | | | | | | | | | | ?????????????????????????????????????????????????? | | ?????????????????????????????????????????????????? | | ?????????????????????????????????????????????????? | | ?????????????????????????????????????????????????? | | ?????????????????????????????????????????????????? | | ?????????????????????????????????????????????????? | | ?????????????????????# ??????????????????????????? | | ????????????????????? ?????????????????????????? | | ?????????????????????? ?????????????????????????? | | ?????????????????????? ?????????????????????????? | | ?????????????????????? #????????????????????????? | | ?????????????????????? ##??????????????????????? | | ??????????????????????? ??????????????????????? | | ??????????????????????? ??????????????????????? | | ??????????????????????? ??????????????????????? | | ???????????????????????# ??????????????????????? | | ???????????????????????# #??????????????????????? | | ???????????????????????# #??????????????????????? | | ???????????????????????# #?####?????????????????? | | ???????????????????????# a### ##????????????????? | | ???????????????????????#a@ #????????????????? | | ????????????????############ #????????????????? | | ????????????????# # ##### ##????????????????? | | ????????????????# # # #####??????????????? | | ??????????????### ## ####????????????? | | ??????????????# # #????????????? | | ??????????????# ### #????????????? | | ???????????# ###???????????? | | ???????????# % # #???????????? | | ??????????# % % # # # ##??????????? | | ??????????# # # # #??????????? | | ?????????# # ## ## #??????????? | | ???????? ###### # # # # # #??????????? | | ???????## ?????# ## ###??????????? | | ????????# ??????# #### #??????????? | | ????????## ???????# # # # #??????????? | | ?????????###???????# # ##??????????? | | ???????????????????##### ## # ####???????????? | | ???????????????????????## # # #???????????? | | ????????????????????????# ###???????????? | | ???????????????????????# ## ##?????????????? | | ?????????????????????### # #??????????????? | | ????????????????????## ### #??????????????? | | ???????????????????##! #? #??????????????? | | ????????????????# # % ### #? #??????????????? | +----------------------------------------------------+ Best States ------------- Heat Dissipation 25 Energy Generation 10 Energy Capacity 250 Matter Stores 300 Matter Capacity 300 Sight Range 16 Terrain Scan Density 10 Armor Coverage 150 Evasion (%) 44 Recoil Reduction 2 Item Schematics ----------------- Hcp. Storage Unit | -10/Materials | Hacked Lrg. Storage Unit | -10/Materials | Hacked Robot Schematics ------------------ None Fabricated ------------ Nothing Alien Tech Used ----------------- None Achievements -------------- None Challenges ------------ None Game ------ Seed HeatSalvageAxe Manual? 0 Play Time 00:15:11 Cumulative 239.5 hours Start 2020.10.20 @ 00:39:43 End 2020.10.20 @ 13:42:20 Sessions 5 Manual Loads 0 Difficulty Rogue Special Mode None Game No. 255 Rogue 255 Adventurer 0 Explorer 0 Win Type - Total 2 Types 2/0/0/0/0/0/0/0/0 Lore% 62 Gallery% 77 Achievement% 58 Wizard Run 0 Options --------- ASCII 0 Keyboard 0 Movement Numpad Keybinds 0 Fullscreen 2 Font 24/Terminus Map View 76x50 Tactical HUD 1 Map Filters NONE Filters NONE Steam 1 RUN: 3f353d20-5695-4cc5-ae39-f460895fc145